Cogmind - Beta 9.1 @@@ ROGUE MODE // 2019.11.05 @ 22:13:00 Player: lsend Result: Destroyed by D-53 Grenadier with Mini Grenade Launcher Performance ------------- Evolutions (0) 0 Regions Visited (2) 400 Robots Destroyed (11) 55 Value Destroyed (0) 0 Prototype IDs (0) 0 Alien Tech Used (0) 0 Bonus (0) 0 TOTAL SCORE: 455 Bonus ------- None Cogmind --------- Core Integrity 0/250 Matter 275/300 Energy 99/100 System Corruption 2% Temperature Cool (171) Location -10/Mines Parts ------- Power (1) Propulsion (2) Utility (2) Weapon (2) Inventory (4) Ion Engine Peak State ------------ Power (None) Propulsion Light Treads Light Treads Utility (None) Weapon Grenade Launcher Inventory Ion Engine [Rating: 3] Favorites ----------- Power None Propulsion Light Treads Treads Light Treads Utility None Weapon Grenade Launcher Launcher Grenade Launcher Build | -11 -10 -10 ------- Run | Scr Mat Min Slots Evolved . | . . . Power . | . . . Propulsion . | . . . Utility . | . . . Weapon . | . . . Parts Attached 3 | 2 . 1 Power . | . . . Engine . | . . . Core . | . . . Reactor . | . . . Propulsion 2 | 2 . . Treads 2 | 2 . . Leg . | . . . Wheel . | . . . Hover . | . . . Flight . | . . . Utility . | . . . Device . | . . . Storage . | . . . Processor . | . . . Hackware . | . . . Protection . | . . . Artifact . | . . . Weapon 1 | . . 1 Energy Gun . | . . . Energy Cannon . | . . . Ballistic Gun . | . . . Ballistic Cannon . | . . . Launcher 1 | . . 1 Special Weapon . | . . . Impact Weapon . | . . . Slashing Weapon . | . . . Piercing Weapon . | . . . Special Melee Weapon . | . . . Unidentified Prototypes . | . . . Parts Lost 3 | . . 3 Power . | . . . Propulsion 2 | . . 2 Utility . | . . . Weapon 1 | . . 1 Highest Loss Streak 3 | . . 3 Average Slot Usage (%) 26 | . 28 25 Treads 26 | . 28 25 Naked Turns 12 | . . 12 Heaviest Build . | . . . Greatest Support 3 | 3 3 3 Greatest Overweight (x) . | . . . Average Overweight (x) . | . . . Largest Inventory Capacity 4 | 4 4 4 Average Capacity 4 | 4 4 4 Most Carried 2 | . . 2 Average Carried 1 | . . 1 Final Capacity 4 | . 4 4 Final Carried 1 | . . 1 Class Distribution -------------------- 100% | Mutant Dominant Class ---------------- Mutant | -10/Materials Mutant | -10/Mines Resources | -11 -10 -10 ----------- Run | Scr Mat Min Matter Collected 194 | 138 . 56 Remotely . | . . . Salvage Created 68 | . . 68 Parts . | . . . Haulers Intercepted . | . . . Recyclers Shooed . | . . . Parts Field Recycled . | . . . Retrieved Matter . | . . . Parts Self-Destructed . | . . . Prevented . | . . . Kills | -11 -10 -10 ------- Run | Scr Mat Min Combat Hostiles Destroyed 11 | . . 11 AOE 11 | . . 11 Classes Destroyed 1 | . . 1 Assembled 11 | . . 11 Best Kill Streak 11 | . . 11 Combat Bots Only 11 | . . 11 Max Kills in Single Turn 5 | . . 5 Gunslinging . | . . . Exploded 5 | . . 5 Melee . | . . . Uniques/NPCs Destroyed . | . . . Combat | -11 -10 -10 -------- Run | Scr Mat Min Damage Taken 620 | . 79 541 Core 276 | . 38 238 Absorbed by Shields . | . . . Core Remaining (%) 100 | 100 . . Volleys Fired 3 | . . 3 Largest 1 | . . 1 Hottest 30 | . . 30 Shots Fired 3 | . . 3 Gun . | . . . Cannon . | . . . Launcher 3 | . . 3 Special . | . . . Kinetic . | . . . Thermal . | . . . Explosive 3 | . . 3 Electromagnetic . | . . . Robot Hit Streak 1 | . . 1 Robot Miss Streak 1 | . . 1 Penetration Max . | . . . Secondary Targets . | . . . Shots Hit Robots 1 | . . 1 Core Hits 24 | . . 24 Critical Hits . | . . . Critical Kills . | . . . Critical Parts Destroyed . | . . . Melee Attacks . | . . . Impact . | . . . Slashing . | . . . Piercing . | . . . Sneak Attacks . | . . . Combat Hostiles . | . . . Follow-up Attacks . | . . . Damage Inflicted 794 | . . 794 Guns . | . . . Cannons . | . . . Explosions 758 | . . 758 Melee . | . . . Ramming 36 | . . 36 Kinetic . | . . . Thermal . | . . . Explosive 758 | . . 758 Electromagnetic . | . . . Impact . | . . . Slashing . | . . . Piercing . | . . . Highest Corruption 2 | . . 2 Average Corruption 2 | . . 2 Corruption Purged . | . . . Effects 1 | . . 1 Heat Flow Errors 1 | . . 1 Overload Shots . | . . . Overflow Damage 27 | . . 27 Projectiles . | . . . Explosions 22 | . . 22 Melee 5 | . . 5 Knockbacks . | . . . Impact . | . . . Kinetic . | . . . Secondary . | . . . Self-Inflicted Damage 98 | . . 98 Shots 3 | . . 3 Rammed 7 | . . 7 Targets Rammed 7 | . . 7 Kicked . | . . . Crushed . | . . . Highest Temperature 221 | . . 221 Average Temperature 84 | . . 84 Received Heat Transfer 100 | . . 100 Siege Activations . | . . . Robots Corrupted . | . . . Combat Hostiles . | . . . Parts Fried . | . . . Impact Corruptions 1 | . . 1 Robots Melted . | . . . Combat Hostiles . | . . . Parts Melted . | . . . Heat Transferred . | . . . Parts Sabotaged . | . . . Parts Stolen . | . . . Parts Stripped . | . . . Power Chain Reactions . | . . . Missiles Intercepted . | . . . Alert | -11 -10 -10 ------- Run | Scr Mat Min Peak Influence 21 | . 21 15 Average Influence 5 | . 5 6 Maximum Alert Level . | . . . Low Security (%) 100 | . . . Level 1 . | . . . Level 2 . | . . . Level 3 . | . . . Level 4 . | . . . Level 5 . | . . . High Security . | . . . Max Security . | . . . Squads Dispatched 1 | . 1 . Investigation . | . . . Extermination . | . . . Reinforcement 1 | . 1 . Assault . | . . . Garrison . | . . . Intercept . | . . . Construction Impeded . | . . . Haulers Reinforced . | . . . Stealth | -11 -10 -10 --------- Run | Scr Mat Min Distress Signals 1 | . . 1 Communications Jammed . | . . . Distress Signals . | . . . Times Spotted 27 | . 5 22 Peak Tracking Total 17 | . 5 17 Tactical Retreats 1 | . . 1 Traps | -11 -10 -10 ------- Run | Scr Mat Min Traps Triggered . | . . . Indirectly . | . . . Trap Hack Attempts . | . . . Triggered . | . . . Disarmed . | . . . Reprogrammed . | . . . Reused . | . . . Traps Extracted . | . . . Installed . | . . . Triggered . | . . . Machines | -11 -10 -10 ---------- Run | Scr Mat Min Machines Disabled . | . . . Max in Single Turn . | . . . Machines Sabotaged . | . . . Garrisons Compromised . | . . . Overloaded Fab Kills . | . . . Fab Network Shutdowns . | . . . Hacking | -11 -10 -10 --------- Run | Scr Mat Min Machines Accessed 3 | . 3 . Terminals 2 | . 2 . Fabricators . | . . . Repair Stations . | . . . Recycling Units 1 | . 1 . Scanalyzers . | . . . Garrison Access . | . . . Total Hacks 4 | . 4 . Successful 3 | . 3 . Failed 1 | . 1 . Catastrophic . | . . . Database Lockouts . | . . . Manual 2 | . 2 . Terminals 3 | . 3 . Fabricators . | . . . Repair Stations . | . . . Recycling Units 1 | . 1 . Scanalyzers . | . . . Garrison Access . | . . . Terminal Hacks 1 | . 1 . Branch Access Points 1 | . 1 . Fabricator Hacks . | . . . Repair Station Hacks . | . . . Recycling Unit Hacks 1 | . 1 . Retrieve Components 1 | . 1 . Scanalyzer . | . . . Garrison Access Hacks . | . . . Unauthorized Hacks 2 | . 2 . Terminals 1 | . 1 . Botnet 1 | . 1 . Fabricators . | . . . Repair Stations . | . . . Recycling Units . | . . . Scanalyzers . | . . . Garrison Access . | . . . Data Cores Recovered . | . . . Used . | . . . Hacking Detections . | . . . Full Trace Events . | . . . Feedback Events . | . . . Feedback Blocked . | . . . Robot Schematics Acquired . | . . . Robots Built . | . . . Matter . | . . . Time . | . . . Total Robot Build Rating . | . . . Part Schematics Acquired . | . . . Parts Built . | . . . Matter . | . . . Time . | . . . Total Part Build Rating . | . . . Parts Repaired . | . . . Time . | . . . Parts Recycled . | . . . Recycled Matter . | . . . Retrieved Matter . | . . . Retrieved Components . | . . . Parts Scanalyzed . | . . . Part Schematics Acquired . | . . . Parts Damaged . | . . . Bothacking | -11 -10 -10 ------------ Run | Scr Mat Min Used RIF Installer . | . . . Robots Hacked . | . . . Non-combat . | . . . Combat . | . . . Robot Hacks Applied . | . . . Relay Couplers Released . | . . . Robots Rewired . | . . . Allies Hacked . | . . . Hacks Repelled . | . . . Allies | -11 -10 -10 -------- Run | Scr Mat Min Total Allies . | . . . Largest Group . | . . . Highest-Rated Group . | . . . Highest-Rated Ally . | . . . Total Orders . | . . . Ally Attacks . | . . . Total Damage . | . . . Kills . | . . . Allies Corrupted . | . . . Allies Melted . | . . . Intel | -11 -10 -10 ------- Run | Scr Mat Min Robot Analysis Total . | . . . Derelict Logs Recovered . | . . . Drone Launches . | . . . Drone Recoveries . | . . . Exploration | -11 -10 -10 ------------- Run | Scr Mat Min Turns Passed 177 | 13 58 106 Spaces Moved 311 | 20 116 175 Core 311 | 20 116 175 Treads . | . . . Legs . | . . . Wheels . | . . . Hover . | . . . Flight . | . . . Fastest Speed 50 | 50 50 50 Average Speed 50 | 50 50 50 Slowest Speed 50 | 50 50 50 Overloaded Moves . | . . . Propulsion Burnouts . | . . . Robots Hopped . | . . . Cave-ins Triggered 1 | . . 1 Exploration Rate (%) 27 | 3 37 42 Regions Visited 2 Branch Regions 1 Pre-discovered Areas . | . . . Known Exits Taken 1 | . 1 . Unknown Exits Taken 1 | 1 . . Scrap Searched 1 | . . 1 Spaces Dug . | . . . Terrain Destroyed 22 | . . 22 Melee . | . . . Projectile . | . . . AOE 22 | . . 22 Actions | -11 -10 -10 --------- Run | Scr Mat Min Total 326 | 21 115 190 Wait 2 | . . 2 Move 309 | 19 115 175 Hop . | . . . Pick Up 2 | . . 2 Fast Attach 2 | 2 . . Attach 1 | . . 1 Detach . | . . . Swap . | . . . Drop . | . . . Fire 3 | . . 3 Melee . | . . . Ram 7 | . . 7 Kick . | . . . Crush . | . . . Escape Stasis . | . . . Rewire . | . . . Trap . | . . . Miscellaneous . | . . . Route ------- -11/Scrapyard -10/Materials -10/Mines History --------- Turn | Location | Event 3 | -11/Scrapyard | Discovered new exit (range 16) 14 | -11/Scrapyard | Entered Materials 44 | -10/Materials | Identified exit to Mines 72 | -10/Materials | Entered Mines 132 | -10/Mines | Assembled infested the area 137 | -10/Mines | Assisted by a Guerilla fighting off Assembled 166 | -10/Mines | Crushed by falling debris 166 | -10/Mines | Core integrity fell below 50% 169 | -10/Mines | Core integrity fell below 20% 178 | -10/Mines | Destroyed by D-53 Grenadier with Mini Grenade Launcher Last Messages --------------- 00162_ as-05998 destroyed. 00162_ as-48407 destroyed. 00163_ as-32506 destroyed. 00163_ Destroyed Asb. F-torch. 00163_ as-18317 destroyed. 00163_ as-96963 destroyed. 00164_ Lgt. Treads destroyed. 00165_ Knocked back. 00165_ Lgt. Treads destroyed. 00165_ as-83323 destroyed. 00165_ as-15180 destroyed. 00165_ as-12186 destroyed. 00165_ Destroyed Asb. Hover Unit. 00166_ The unstable cave ceiling collapses. 00166_ Crushed by falling debris. 00166_ Grenade Launcher destroyed. 00166_ System corrupted by crushing effect (+2). 00172_ Slammed into as-13303. 00172_ G-34 Mercenary destroyed. 00175_ System corrupted: Heat flow error (+246). Map ----- +----------------------------------------------------+ | ????????????## #??????????????????# #???? | | ?????????????# #??????????????????# #???? | | ?????????????## %#??????????????????# #???? | | ??????????????## ##?????????????????# #???? | | ?????????????#### ##????????????????# #???? | | ????????????## ##???????????????# #???? | | ???????????## #??????????????## ##??? | | ???????????# # % #??????????????# ##?? | | ???????????# % ##?????????????## ### | | ???????????## #?????????????## | | ????????????# #?????????????# | | ????????????# ### ##??????????# ## | | ????????????## #?# ##????????# ##? | | ?????????????# #?## = ###?????# ###?? | | ????????###### #??##a % ####*# ##???? | | ????????# ##### =%|!%| ?????? | | ????????# ###### a ! %*= ?????? | | ????????# #????# a ##### #?????? | | ????????# ####?# # ## ##???### #??????? | | ???????## ### a #?#####??????###???????? | | ???????# ## #??????????????????????? | | ??????# ###### #??????????????????????? | | ?????# ##????# #??????????????????????? | | ?????# ##?????# #??????????????????????? | | ?????## ####??????#a #??????????????????????? | | ??????###??????????# @#??????????????????????? | | ???????????????????# #??????????????????????? | | ???????????????????# #??????????????????????? | | ???????????????????# #??????????????????????? | | ???????????????????# ??????????????????????? | | ???????????????????# ??????????????????????? | | ??????????????????? ??????????????????????? | | ??????????????????? g??????????????????????? | | ???????????????????d %??????????????????????? | | ?????????????????? d ?????????????????????? | | ?????????????????? ?????????????????????? | | ?????????????????? ?????????????????????? | | ?????????????????? ?????????????????????? | | ????????????????? < ?????????????????????? | | ????????????????? ?????????????????????? | | ??????????????????? #?????????????????????? | | ?????????????????????????????????????????????? | | ?????????????????????????????????????????????? | | ?????????????????????????????????????????????? | | ?????????????????????????????????????????????? | | ?????????????????????????????????????????????? | | ?????????????????????????????????????????????? | | ?????????????????????????????????????????????? | | ?????????????????????????????????????????????? | | ?????????????????????????????????????????????? | +----------------------------------------------------+ Best States ------------- Heat Dissipation 25 Energy Generation 5 Energy Capacity 100 Matter Stores 281 Matter Capacity 300 Sight Range 16 Terrain Scan Density 10 Evasion (%) 50 Item Schematics ----------------- None Robot Schematics ------------------ None Fabricated ------------ Nothing Alien Tech Used ----------------- None Achievements -------------- None Challenges ------------ None Game ------ Seed RiotCoolingBox Manual? 0 Play Time 00:05:43 Cumulative 466.4 hours Start 2019.10.30 @ 21:50:47 End 2019.11.05 @ 22:13:00 Sessions 3 Manual Loads 0 Difficulty Rogue Special Mode None Game No. 391 Rogue 391 Adventurer 0 Explorer 0 Win Type - Total 128 Types 81/6/27/6/3/2/3 Lore% 98 Gallery% 95 Achievement% 83 Wizard Run 0 Options --------- ASCII 1 Keyboard 0 Movement Vi Keybinds 0 Fullscreen 0 Font 16/Smallcaps Map View 86x75 Tactical HUD 1 Map Filters NONE Filters NONE Steam 1 RUN: a92fcd47-2266-4441-9aca-82604893efbe